bitfinex/quotes_ETHUSD_20250731
["timestamp","ask_amount","ask_price","bid_price","bid_amount"]
[1753972435800,0.4978,3775.8,3775.7,0.8955]
[1753972435990,2.64839755,3775.9,3775.4,0.8321]
[1753972436153,0.1328,3776.0,3775.6,4.227]
[1753972436361,3.27891042,3776.0,3775.6,4.227]
[1753972436561,0.4978,3775.9,3775.6,4.227]
[1753972436797,0.4978,3775.8,3775.6,4.227]
[1753972437107,3.1463155,3775.7,3775.6,4.227]
[1753972437588,3.1463155,3775.7,3775.1,0.4414]
[1753972437589,2.64874091,3775.4,3775.1,4.226]
[1753972437789,3.14660778,3775.3,3775.1,4.226]
[1753972437988,3.14666628,3775.2,3775.1,4.226]
[1753972438664,3.58076628,3775.2,3775.1,4.226]
[1753972439597,2.64923724,3774.7,3774.5,0.1328]
[1753972439793,2.64923724,3774.7,3774.6,4.226]
[1753972440006,0.4978,3775.0,3774.6,4.226]
[1753972440203,3.14692402,3774.9,3774.6,4.226]
[1753972440518,0.4978,3774.9,3774.6,4.226]
[1753972440662,2.64909809,3774.9,3774.6,4.226]
[1753972441165,2.64901502,3775.0,3774.7,0.5742]
[1753972441359,2.78160815,3775.3,3774.8,0.4414]
[1753972441559,2.78129333,3775.8,3774.9,4.07835979]
[1753972441786,0.1328,3775.8,3775.2,0.1328]
[1753972442411,0.52900254,3775.7,3775.2,0.1328]
[1753972442617,0.4978,3776.4,3775.3,0.46888796]
[1753972442795,0.4978,3776.4,3775.5,0.1328]
[1753972443118,2.64823495,3776.1,3775.5,0.1328]
[1753972443326,2.64831608,3776.0,3775.5,0.1328]
[1753972443810,2.7810079,3776.2,3775.5,0.5742]
[1753972444026,0.1328,3776.2,3775.5,0.5742]
[1753972444392,2.7810234,3776.2,3775.5,0.5742]
[1753972444585,0.6306,3776.2,3775.5,0.5742]
[1753972444785,3.27879262,3776.2,3775.6,2.64856943]
[1753972444990,2.64831603,3776.0,3775.5,0.5742]
[1753972445421,2.6482486,3776.1,3775.5,0.5742]
[1753972445620,0.6306,3776.2,3775.5,3.22284163]
[1753972445788,3.27878298,3776.2,3775.6,2.64857804]
[1753972446115,3.27877477,3776.2,3775.6,2.64857635]
[1753972446317,3.27878364,3776.2,3775.5,0.5742]
[1753972446546,0.6306,3776.2,3775.5,0.1328]
[1753972446735,3.2787667,3776.2,3775.6,0.51252]
[1753972446897,0.6306,3776.2,3775.6,0.51252]
[1753972447097,0.6306,3776.2,3775.7,2.64845881]
[1753972447301,0.6306,3776.2,3775.8,4.222]
[1753972447709,3.27880801,3776.2,3775.8,4.222]
[1753972447912,0.6306,3776.2,3775.8,4.222]
[1753972448097,3.27877479,3776.2,3775.8,4.222]
[1753972448541,0.6306,3776.2,3775.8,4.222]
[1753972448709,3.27876712,3776.2,3775.8,4.222]
[1753972449226,2.64823495,3776.1,3775.8,4.222]
[1753972449425,0.4978,3776.0,3775.8,4.222]
[1753972449634,3.14617522,3775.9,3775.8,4.222]
[1753972449818,0.6306,3775.9,3775.8,4.222]
[1753972450123,2.64844536,3775.8,3775.4,0.7674]
[1753972450292,0.4978,3775.7,3775.4,0.7674]
[1753972450492,0.4978,3775.6,3775.4,0.7674]
[1753972450843,2.64872596,3775.4,3775.3,0.1328]
[1753972451048,0.6306,3775.6,3775.1,5.1836]
[1753972451338,0.1328,3775.6,3775.2,0.4414]
[1753972451491,0.1328,3776.0,3775.5,0.1328]
[1753972451694,2.64858565,3775.6,3775.1,0.8298]
[1753972451992,2.64879612,3775.3,3775.2,4.221]
[1753972452195,0.4978,3775.3,3775.2,4.221]
[1753972452740,3.14659612,3775.3,3775.2,4.221]
[1753972453030,0.1328,3775.4,3775.0,0.7686]
[1753972453214,2.78153632,3775.4,3775.1,4.22]
[1753972453414,0.1328,3775.4,3775.1,4.6614]
[1753972453728,0.6306,3775.8,3775.2,0.5742]
[1753972453902,0.4978,3776.1,3775.3,0.02648796]
[1753972454104,0.4998,3776.4,3775.7,0.1328]
[1753972454307,2.78089469,3776.3,3775.8,4.22]
[1753972454502,2.64818151,3776.2,3775.8,4.22]
[1753972454727,0.4978,3776.2,3775.8,4.22]
[1753972454929,0.002,3776.4,3775.9,0.46788375]
[1753972455120,0.002,3776.4,3776.3,0.1328]
[1753972455303,0.4998,3776.4,3776.3,0.1328]
[1753972455628,0.9339,3776.4,3776.0,0.8068]
[1753972455799,0.9319,3776.3,3775.9,4.219]
[1753972456000,3.14597128,3776.2,3775.9,4.219]
[1753972456194,0.4951,3776.1,3775.9,4.219]
[1753972456418,0.1348,3776.4,3775.9,6.86736227]
[1753972456623,0.4951,3776.3,3775.9,4.219]
[1753972456826,2.782874,3776.4,3775.9,4.219]
[1753972457139,0.002,3776.4,3775.9,4.219]
[1753972457440,3.14512849,3776.4,3775.9,5.56029788]
[1753972457591,0.4951,3776.3,3775.9,5.56029788]
[1753972458227,3.14332257,3776.2,3775.9,4.219]
[1753972458404,0.002,3776.4,3775.9,4.219]
[1753972458835,0.4951,3776.3,3775.9,4.219]
[1753972459045,0.002,3776.4,3776.0,3.09883684]
[1753972459239,0.002,3776.4,3776.1,0.1328]
[1753972459420,0.002,3776.4,3776.1,3.09879225]
[1753972459638,0.002,3776.4,3776.3,0.1328]
[1753972459946,0.002,3776.4,3776.3,4.3508]
[1753972460253,0.002,3776.4,3776.3,8.29417563]
[1753972460550,0.002,3776.4,3776.3,12.20836951]
[1753972460717,0.4951,3778.2,3776.7,0.8182]
[1753972460911,0.132,3778.0,3777.5,0.132]
[1753972461149,3.57003507,3777.9,3777.6,4.217]
[1753972461463,0.4951,3777.8,3777.5,4.217]
[1753972461751,3.1422315,3777.7,3777.5,4.217]
[1753972461958,3.14228339,3777.6,3777.5,4.217]
[1753972462125,2.64732355,3777.4,3777.0,0.8182]
[1753972462324,2.6475203,3777.2,3777.1,4.216]
[1753972462646,3.57048977,3777.2,3777.1,4.216]
[1753972462850,3.14258977,3777.2,3777.1,4.216]
[1753972463245,3.57048977,3777.2,3777.1,4.216]
[1753972463440,4.28849208,3777.2,3777.1,4.216]
[1753972463751,4.28849208,3777.2,3776.8,4.216]
[1753972463752,1.64100231,3777.2,3776.8,4.216]
[1753972464070,2.64767401,3776.9,3776.8,4.216]
[1753972464252,3.14277401,3776.9,3776.8,4.216]
[1753972464615,0.4951,3776.9,3776.8,4.216]
[1753972464848,3.14277401,3776.9,3776.8,4.216]
[1753972466167,2.64774412,3776.8,3776.7,4.215]
[1753972466367,3.14279217,3776.9,3776.7,4.215]
[1753972466531,0.4951,3776.9,3776.7,4.215]
[1753972466734,0.132,3777.3,3776.8,3.76]
[1753972466954,2.64758251,3777.1,3776.8,3.76]
[1753972467265,0.4951,3777.1,3776.8,3.76]
[1753972467664,0.132,3777.3,3776.8,0.76]
[1753972467960,3.14275818,3777.0,3776.8,0.76]
[1753972468161,0.4951,3777.0,3776.8,0.76]
[1753972468367,2.64747288,3777.2,3776.8,0.76]
[1753972468568,2.64748786,3777.2,3776.8,0.76]
[1753972468763,0.4951,3777.1,3776.8,0.76]
[1753972468977,0.132,3777.3,3776.8,0.76]
[1753972469130,0.4951,3777.1,3776.8,0.76]
[1753972469965,0.132,3777.3,3776.8,1.31576]
[1753972470149,0.132,3777.3,3776.9,0.4506]
[1753972470464,3.14261501,3777.2,3776.8,0.76]
[1753972470628,0.4951,3777.1,3776.7,4.215]
[1753972470828,2.64774412,3776.8,3776.7,4.215]
[1753972471027,0.4951,3776.8,3776.7,4.215]
[1753972471229,3.14284412,3776.8,3776.7,4.215]
[1753972471448,0.4951,3776.8,3776.7,4.215]
[1753972471649,2.77953822,3777.1,3776.7,4.215]
[1753972471866,2.64750851,3777.2,3776.8,0.132]
[1753972472568,2.64767401,3776.9,3776.4,0.7937]
[1753972472746,0.4951,3776.8,3776.5,4.212]
[1753972472941,2.64767758,3776.9,3776.5,4.212]
[1753972473262,2.64781422,3776.7,3776.6,0.132]
[1753972473462,2.64781422,3776.7,3776.5,4.212]
[1753972473463,2.64788434,3776.6,3776.5,4.212]
[1753972473671,2.64782432,3776.7,3776.5,4.212]
[1753972473841,2.64736647,3777.4,3776.6,1.2189]
[1753972473842,0.4951,3777.4,3776.6,1.2189]
[1753972474176,0.4951,3777.4,3776.9,0.132]
[1753972474177,0.6271,3777.4,3776.9,0.132]
[1753972474465,3.14250739,3777.3,3777.0,4.211]
[1753972474762,0.4951,3777.3,3777.0,4.211]
[1753972474948,2.64732395,3777.4,3777.0,4.6616]
[1753972475460,0.132,3777.6,3777.0,4.6616]
[1753972475839,2.64720096,3777.6,3777.1,0.7641]
[1753972476040,2.64720096,3777.6,3777.3,0.132]
[1753972476245,3.27419945,3777.8,3777.4,4.211]
[1753972476540,0.6271,3777.8,3777.4,4.211]
[1753972476745,2.64670349,3778.3,3777.5,3.0978534]
[1753972476934,2.64670349,3778.3,3777.7,0.132]
[1753972476935,0.132,3778.3,3777.7,0.132]
[1753972477135,0.132,3778.5,3777.9,0.132]
[1753972477454,0.4951,3778.9,3777.9,3.4506]
[1753972477654,0.4951,3778.9,3778.5,2.64654297]
[1753972477855,0.132,3779.2,3778.7,3.132]
[1753972478166,0.132,3779.9,3779.2,2.64606184]
[1753972478463,0.132,3779.9,3779.3,6.8824383]
[1753972478662,0.132,3779.9,3779.4,0.132]
[1753972478870,2.7775845,3779.9,3779.4,0.5826]
[1753972479047,0.4951,3779.8,3779.4,0.132]
[1753972479246,2.64571795,3779.7,3779.4,0.132]
[1753972479452,3.14074872,3779.8,3779.4,0.132]
[1753972479765,3.10506268,3779.9,3779.5,0.7865]
[1753972479972,2.64573051,3779.7,3779.5,0.7865]
[1753972480146,2.64573681,3779.7,3779.5,0.7865]
[1753972480330,0.132,3779.9,3779.5,0.7865]
[1753972480736,2.64578262,3779.6,3779.5,0.7865]
[1753972480969,0.132,3779.9,3779.5,0.7865]
[1753972481149,2.77758446,3779.9,3779.5,0.7865]
[1753972481345,2.64571675,3779.7,3779.5,0.7865]
[1753972481736,2.64578262,3779.6,3779.5,0.7865]
[1753972482338,2.6456752,3779.8,3779.5,0.7865]
[1753972482339,2.64566376,3779.8,3779.5,0.7865]
[1753972482567,2.7776237,3779.9,3779.5,0.7865]
[1753972482870,0.002,3780.1,3779.6,2.64578262]
[1753972483062,0.002,3780.1,3779.9,0.132]
[1753972483783,0.002,3780.1,3780.0,0.5826]
[1753972485438,0.002,3780.1,3780.0,0.132]
[1753972485645,0.002,3780.1,3780.0,0.61136]
[1753972486154,2.64743266,3780.1,3780.0,0.61136]
[1753972486679,2.64743266,3780.1,3780.0,0.132]
[1753972486841,3.12033266,3780.1,3780.0,0.132]
[1753972487360,3.12033266,3780.1,3779.8,3.0]
[1753972487548,2.64557263,3779.9,3779.8,3.0]
[1753972487754,0.002,3780.1,3779.9,0.132]
[1753972487958,2.64557263,3779.9,3779.8,4.3186]
[1753972488163,3.11847263,3779.9,3779.8,4.3186]
[1753972488554,2.64743673,3780.1,3779.8,4.3186]
[1753972488555,2.64552569,3780.0,3779.8,4.3186]
[1753972488862,2.64557263,3779.9,3779.8,4.3186]
[1753972489472,2.64551869,3780.0,3779.8,4.3186]
[1753972489652,0.002,3780.1,3779.8,4.74548816]
[1753972489852,0.002,3780.1,3780.0,0.132]
[1753972490651,0.002,3780.1,3780.0,6.11095766]
[1753972490854,0.002,3780.1,3780.0,6.21750264]
[1753972491456,0.002,3780.1,3780.0,15.96622679]
[1753972491756,0.002,3780.1,3780.0,17.16758397]
[1753972493855,0.002,3780.3,3780.2,3.19536267]
[1753972494095,0.002,3780.3,3780.2,11.24711629]
[1753972494291,0.002,3780.3,3780.2,11.66066267]
[1753972494955,0.002,3780.3,3780.2,11.79266267]
[1753972495157,0.002,3780.3,3780.2,12.41135589]
[1753972496003,1e-08,3780.3,3780.2,12.41135589]
[1753972496206,0.002,3780.5,3780.4,3.96972272]
[1753972496512,0.4443,3782.2,3781.6,0.7652]
[1753972496513,0.4729,3782.2,3781.6,0.7652]
[1753972496676,0.4729,3782.2,3782.1,0.132]
[1753972496992,2.77555407,3782.8,3782.1,4.332]
[1753972497195,0.9172,3782.7,3782.2,5.64394111]
[1753972497498,0.9172,3782.7,3782.4,0.132]
[1753972497672,0.9172,3782.6,3782.5,4.2]
[1753972498099,3.56088423,3782.6,3782.5,4.2]
[1753972498421,0.9172,3782.6,3782.5,4.2]
[1753972498885,0.7766,3782.5,3781.2,3.8138]
[1753972499086,0.132,3782.1,3781.6,0.132]
[1753972499286,0.7766,3782.5,3782.0,0.132]
[1753972499501,0.4443,3782.4,3782.1,4.199]
[1753972499698,0.4443,3782.4,3782.2,0.132]
[1753972500011,1.6938,3782.3,3781.2,0.8138]
[1753972500173,0.4729,3782.2,3781.8,0.132]
[1753972500374,2.64417356,3781.9,3781.8,0.132]
[1753972500576,3.56137356,3781.9,3781.8,0.132]
[1753972500878,2.64438332,3781.6,3781.5,4.198]
[1753972501108,3.69358332,3781.6,3781.5,4.198]
[1753972501288,1.0492,3781.6,3781.5,4.198]
[1753972501493,3.11728332,3781.6,3781.5,4.33]
[1753972501716,3.56158332,3781.6,3781.5,0.132]
[1753972501872,2.64459312,3781.3,3781.0,0.132]
[1753972502210,2.64446333,3781.5,3781.1,4.198]
[1753972502211,0.9172,3781.5,3781.1,4.198]
[1753972502415,3.5617383,3781.4,3781.1,4.198]
[1753972502612,0.9172,3781.3,3781.1,4.198]
[1753972502789,0.9172,3781.2,3781.1,4.198]
[1753972503379,0.4729,3781.2,3781.1,4.198]
[1753972503699,0.4729,3781.6,3781.2,3.0]
[1753972503904,0.4729,3782.0,3781.3,0.7826]
[1753972504112,0.4729,3782.0,3781.5,0.132]
[1753972504410,0.4729,3781.9,3781.7,0.132]
[1753972504635,0.4729,3781.9,3781.8,4.197]
[1753972504779,3.11707356,3781.9,3781.8,4.197]
[1753972504981,4.00508092,3781.9,3781.8,4.197]
[1753972505617,3.56078092,3781.9,3781.8,4.197]
[1753972505802,3.69337356,3781.9,3781.8,4.197]
[1753972511001,2.64452319,3781.4,3781.3,0.132]
[1753972511182,0.9172,3781.8,3781.3,4.195]
[1753972511387,0.132,3781.6,3781.3,4.195]
[1753972511582,0.4729,3781.5,3781.3,4.195]
[1753972511825,2.64446096,3781.5,3781.3,4.195]
[1753972512132,0.4729,3781.4,3781.3,4.195]
[1753972512684,0.132,3781.6,3781.3,4.195]
[1753972512926,0.6049,3781.6,3781.3,4.195]
[1753972513101,0.4729,3781.6,3781.3,4.195]
[1753972513820,3.11728655,3781.6,3781.3,4.195]
[1753972514174,0.4729,3781.5,3781.3,4.195]
[1753972514925,0.4729,3781.4,3781.3,4.195]
[1753972515830,2.64463894,3781.3,3780.5,0.7779]
[1753972516044,3.08884833,3781.4,3781.0,0.132]
[1753972516191,0.4579,3781.2,3781.0,0.132]
[1753972516392,2.64483499,3781.0,3780.9,4.193]
[1753972516597,2.64487901,3780.9,3780.3,2.64528952]
[1753972516797,0.4579,3780.8,3780.4,6.83819051]
[1753972517153,0.4579,3780.7,3780.4,6.83822122]
[1753972517456,0.4472,3781.0,3780.5,2.64510593]
[1753972517759,0.4472,3781.4,3780.6,2.64508279]
[1753972517906,0.4472,3781.4,3780.6,2.67153361]
[1753972518113,0.4472,3781.4,3780.9,2.6448725]
[1753972518313,2.64418943,3781.9,3781.0,4.193]
[1753972518314,0.55,3781.8,3781.0,4.193]
[1753972518698,0.002,3781.5,3781.3,2.64452528]
[1753972518917,0.002,3781.5,3781.4,4.193]
[1753972519538,0.4599,3781.5,3781.4,4.193]
[1753972521140,0.002,3781.5,3781.4,6.83752319]
[1753972521441,0.002,3781.5,3781.4,4.193]
[1753972521670,4.192,3782.7,3781.4,4.193]
[1753972521671,0.8187,3782.4,3781.4,5.32975232]
[1753972521804,0.4579,3782.1,3781.8,2.64420978]
[1753972522003,0.4579,3782.5,3781.9,4.192]
[1753972522244,0.4579,3783.0,3782.0,3.453]
[1753972522443,2.64292639,3783.7,3782.6,0.7987]
[1753972522601,0.4579,3783.3,3782.7,4.192]
[1753972522935,0.4579,3783.3,3782.7,6.83555305]
[1753972523134,0.4579,3783.3,3782.9,2.64341613]
[1753972523438,0.4579,3783.5,3782.7,4.192]
[1753972523600,0.02413168,3783.9,3783.8,2.64284581]
[1753972523800,0.02413168,3783.9,3783.8,6.83384581]
[1753972524230,0.02413168,3783.9,3783.8,7.35794581]
[1753972524611,0.02413168,3783.9,3783.8,7.28684581]
[1753972525046,0.02413168,3783.9,3783.8,4.191]
[1753972525659,0.48203168,3783.9,3783.8,4.191]
[1753972525956,0.48203168,3783.9,3783.6,4.19]
[1753972525957,3.57207228,3783.9,3783.6,4.19]
[1753972526163,0.4579,3783.8,3783.6,4.19]
[1753972527330,0.4579,3783.7,3783.6,4.19]
[1753972528043,0.02413168,3783.9,3783.6,4.19]
[1753972528532,3.54800594,3783.8,3783.6,4.19]
[1753972528733,0.4579,3783.7,3783.6,4.19]
[1753972529117,0.02413168,3783.9,3783.6,4.19]
[1753972529514,0.02413168,3783.9,3783.6,4.322]
[1753972530133,0.02413168,3783.9,3783.6,6.96492846]
[1753972530353,0.02413168,3783.9,3783.6,7.79642846]
[1753972530669,0.02413168,3783.9,3783.6,5.1535]
[1753972530866,0.02413168,3783.9,3783.6,7.79648177]
[1753972531321,0.02413168,3783.9,3783.6,5.1535]
[1753972531523,0.02413168,3783.9,3783.6,4.322]
[1753972531773,0.4579,3783.8,3783.6,4.322]
[1753972531923,1.8656,3783.7,3783.1,0.132]
[1753972532279,2.64319509,3783.3,3783.2,4.188]
[1753972532441,3.54829509,3783.3,3783.2,4.188]
[1753972532829,1.0371,3783.3,3783.2,4.188]
[1753972533044,1.0371,3783.3,3782.9,3.0]
[1753972533267,0.132,3783.3,3783.1,4.188]
[1753972533443,0.4579,3783.2,3783.1,4.188]
[1753972533855,0.132,3783.3,3783.1,6.83133483]
[1753972534056,0.132,3783.8,3783.2,0.7626]
[1753972534283,2.77487188,3783.8,3783.2,3.40584062]
[1753972534442,0.132,3783.8,3783.2,0.7626]
[1753972534773,0.4579,3784.0,3783.2,0.7626]
[1753972534774,0.132,3784.0,3783.5,0.132]
[1753972535089,0.132,3784.0,3783.6,4.187]
[1753972535460,0.002,3784.1,3783.6,5.07795968]
[1753972535786,0.002,3784.1,3783.8,0.132]
[1753972536098,0.002,3784.1,3783.9,4.187]
[1753972536395,0.002,3784.1,3784.0,2.77470613]
[1753972537539,0.002,3784.6,3784.5,2.64235698]
[1753972537744,0.002,3784.6,3784.5,6.96035698]
[1753972538041,0.002,3784.6,3784.5,4.318]
[1753972538547,0.4599,3784.6,3784.5,4.318]
[1753972538869,0.9071,3784.6,3784.5,4.186]
[1753972539072,3.54938716,3784.6,3784.5,4.186]
[1753972539496,4.44168716,3784.6,3784.5,4.186]
[1753972539694,2.42256073,3784.6,3784.2,4.186]
[1753972540032,2.42256073,3784.6,3783.3,3.0]
[1753972540033,0.132,3784.3,3783.5,0.132]
[1753972540171,2.64279177,3783.9,3783.6,4.185]
[1753972540373,0.4579,3783.8,3783.6,4.185]
[1753972540879,0.4579,3783.7,3783.6,4.185]
[1753972541715,0.4579,3784.4,3783.6,4.638]
[1753972541867,0.4579,3784.4,3783.8,2.64280059]
[1753972542067,0.132,3784.5,3784.0,3.570979]
[1753972542270,0.132,3784.5,3784.0,0.9283]
[1753972542271,2.64245029,3784.4,3784.0,0.9283]
[1753972542512,2.64261041,3784.2,3784.0,0.132]
[1753972542671,0.4579,3784.3,3784.0,0.132]
[1753972543193,2.64263629,3784.1,3784.0,0.132]
[1753972543403,2.64270613,3784.0,3783.9,4.185]
[1753972543574,0.4579,3784.0,3783.9,4.185]
[1753972543911,1.253,3784.1,3783.9,4.185]
[1753972543912,0.002,3784.1,3783.9,4.185]
[1753972544126,0.002,3784.1,3783.9,6.82774016]
[1753972544271,0.002,3784.1,3784.0,3.25413319]
[1753972544471,0.002,3784.1,3784.0,3.22770613]
[1753972546013,0.002,3784.1,3784.0,0.15842706]
[1753972546229,0.002,3784.1,3784.0,6.95870613]
[1753972546408,0.002,3784.1,3784.0,8.2984888]
[1753972546779,0.04,3785.9,3784.2,0.7876]
[1753972546974,0.132,3785.6,3785.1,0.132]
[1753972547274,0.04,3785.9,3785.5,0.132]
[1753972547479,0.04,3785.9,3785.8,0.132]
[1753972549718,3.17567985,3785.9,3785.8,0.132]
[1753972550333,3.17567985,3785.9,3785.8,0.8901]
[1753972550334,0.04,3785.9,3785.8,0.8901]
[1753972550602,0.04,3785.9,3785.8,6.93114962]
[1753972550805,0.04,3785.9,3785.8,7.62749773]
[1753972551007,0.04,3785.9,3785.8,7.55639773]
[1753972551230,0.47282497,3786.4,3785.9,2.64137985]
[1753972551381,0.002,3786.7,3786.6,6.39899156]
[1753972551581,0.002,3786.7,3786.6,10.58099156]
[1753972551882,0.002,3786.7,3786.6,13.00237423]
[1753972552481,0.002,3786.7,3786.6,12.45237423]
[1753972553295,1e-08,3786.7,3786.6,13.00237423]
[1753972553621,0.04,3787.9,3787.0,6.44761262]
[1753972553779,0.04,3787.9,3787.0,10.62861262]
[1753972553981,0.04,3787.9,3787.0,11.43680195]
[1753972556324,0.04,3787.9,3787.0,11.36570195]
[1753972556626,0.04,3787.9,3787.8,3.46995491]
[1753972556788,0.04,3787.9,3787.8,17.02035545]
[1753972556990,0.04,3787.9,3787.8,17.52555491]
[1753972557184,0.04,3787.9,3787.8,13.51130302]
[1753972557390,0.04,3787.9,3787.8,17.69030302]
[1753972557692,0.04,3788.9,3788.8,6.3919581]
[1753972557886,0.04,3788.9,3788.8,10.5699581]
[1753972558291,0.04,3788.9,3788.8,11.0304581]
[1753972558490,0.04,3788.9,3788.8,12.37024077]
[1753972559341,0.04,3788.9,3788.8,12.64357793]
[1753972559786,0.04,3788.9,3788.8,13.19357793]
[1753972559989,0.04,3788.9,3788.8,13.12247793]
[1753972560190,0.04,3788.9,3788.8,12.57247793]
[1753972560404,0.03028717,3788.9,3788.8,13.32557793]
[1753972560609,1e-08,3788.9,3788.8,13.32557793]
[1753972561326,1e-08,3788.9,3788.8,12.24297793]
[1753972561662,1e-08,3788.9,3787.8,6.345]
[1753972561663,1.79480001,3788.9,3787.8,6.345]
[1753972561791,0.829,3787.8,3786.7,0.7668]
[1753972562128,0.9658,3787.7,3786.8,4.177]
[1753972562333,1e-08,3788.9,3786.8,4.177]
[1753972562334,2.63948198,3788.7,3786.9,0.54037824]
[1753972562490,2.63997458,3788.0,3786.9,0.51397142]
[1753972562688,0.9658,3787.9,3786.7,0.19591415]
[1753972562887,0.7908,3787.7,3786.8,4.176]
[1753972563087,2.64019431,3787.6,3786.9,0.02640682]
[1753972563293,0.4943,3787.6,3786.9,3.02640682]
[1753972563492,0.4943,3787.6,3786.9,3.0]
[1753972563737,0.4943,3788.1,3787.6,3.0]
[1753972563937,0.49430001,3788.9,3787.8,3.0]
[1753972564121,0.49430001,3788.9,3788.5,2.6395355]
[1753972564347,0.49430001,3788.9,3788.7,3.0]
[1753972564522,1e-08,3788.9,3788.7,3.0]
[1753972564721,0.9658,3788.8,3788.7,3.0]
[1753972564920,0.9658,3788.8,3788.6,4.176]
[1753972565125,1e-08,3788.9,3788.6,4.5936]
[1753972565434,1e-08,3788.9,3788.8,5.6393581]
[1753972565822,1e-08,3788.9,3788.8,6.0998581]
[1753972566133,1e-08,3788.9,3788.8,5.6393581]
[1753972566332,1e-08,3788.9,3788.8,6.1709581]
[1753972566536,1e-08,3788.9,3788.8,7.27737821]
[1753972566906,1e-08,3788.9,3788.8,11.45737821]
[1753972567111,0.04,3789.9,3788.9,3.0]
[1753972567313,0.5343,3789.9,3789.5,2.63884069]
[1753972567534,0.5343,3789.9,3789.6,7.179]
[1753972567535,0.9658,3789.8,3789.6,7.179]
[1753972567701,0.9658,3789.7,3788.8,2.63930438]
[1753972567899,2.63921879,3789.0,3788.9,4.179]
[1753972568138,3.60501879,3789.0,3788.9,3.679]
[1753972568913,2.63928844,3788.9,3788.1,6.342]
[1753972569139,2.63963479,3788.5,3788.2,4.18]
[1753972569372,3.40470646,3788.3,3788.2,4.18]
[1753972569524,4.37050646,3788.3,3788.2,4.18]
[1753972570678,0.9658,3788.3,3788.2,4.18]
[1753972570842,0.9658,3788.3,3788.1,6.342]
[1753972571006,0.4715,3788.3,3788.2,4.187]
[1753972571520,0.4715,3788.3,3788.2,4.319]
[1753972571713,0.9658,3788.3,3788.2,4.319]
[1753972572238,0.9658,3788.3,3788.2,4.317]
[1753972572445,0.4943,3788.3,3788.2,4.317]
[1753972573074,0.8044,3788.7,3788.3,2.63970646]
[1753972573211,0.4943,3788.6,3788.5,3.0]
[1753972573401,0.002,3788.9,3788.7,3.0]
[1753972573608,0.002,3788.9,3788.8,9.84875168]
[1753972573807,0.002,3788.9,3788.8,10.6355581]
[1753972574044,0.002,3788.9,3788.8,11.5950581]
[1753972574213,1e-08,3788.9,3788.8,12.1450581]
[1753972574640,2.63707255,3792.1,3788.8,12.1450581]
[1753972574641,0.4715,3791.3,3790.8,2.6379656]
[1753972574844,0.4943,3791.5,3790.8,9.8309656]
[1753972575041,0.4715,3791.8,3790.8,10.86143597]
[1753972575241,0.5343,3791.9,3790.8,10.86143597]
[1753972575639,1.0058,3791.9,3790.8,10.86143597]
[1753972575981,0.5343,3791.9,3790.8,11.06075893]
[1753972576129,0.4742,3791.5,3790.8,6.86775893]
[1753972576325,0.4467,3791.7,3790.8,11.06475893]
[1753972576563,0.4467,3791.7,3790.8,5.83728856]
[1753972576762,0.5142,3790.9,3790.8,7.2]
[1753972577738,0.5142,3790.9,3790.8,9.8379656]
[1753972577941,0.04,3790.9,3790.8,9.8379656]
[1753972579170,0.04,3790.9,3790.8,10.7985656]
[1753972579372,0.04,3790.9,3790.8,12.16227576]
[1753972579891,0.04,3790.9,3790.8,11.20167576]
[1753972580089,0.04,3790.9,3790.8,3.0]
[1753972580287,0.04,3790.9,3790.8,7.196]
[1753972580440,0.9609,3790.9,3790.8,3.0]
[1753972580639,0.9609,3790.9,3790.8,4.196]
[1753972580878,0.04,3790.9,3790.8,9.8339656]
[1753972581039,0.04,3790.9,3790.8,11.08117137]
[1753972581244,0.04,3790.9,3790.8,12.04177137]
[1753972582856,1e-08,3790.9,3790.8,12.04177137]
[1753972583492,0.47420001,3790.9,3790.8,3.0]
[1753972583796,0.92090001,3790.9,3790.8,7.198]
[1753972584595,1e-08,3790.9,3790.8,7.198]
[1753972585590,4.32179602,3790.9,3790.8,4.198]
[1753972585889,4.32179602,3790.9,3790.3,6.341]
[1753972585890,2.63824398,3790.4,3790.3,6.341]
[1753972586090,3.55914398,3790.4,3790.3,10.543]
[1753972586289,4.35054398,3790.4,3790.3,4.202]
[1753972586489,1.7123,3790.4,3789.0,0.19954244]
[1753972586699,2.6387411,3789.7,3789.1,4.202]
[1753972586859,2.6387411,3789.7,3789.2,3.0]
[1753972587059,2.63880211,3789.6,3789.4,3.0]
[1753972587287,2.63880211,3789.6,3789.5,7.202]
[1753972587591,2.63880211,3789.6,3788.9,6.338]
[1753972587592,2.6390325,3789.3,3788.9,6.338]
[1753972587898,2.63877503,3789.7,3788.9,8.97724167]
[1753972588108,1.7123,3790.0,3789.1,3.0]
[1753972588395,2.63871239,3789.8,3789.1,3.0]
[1753972588596,1.8123,3790.0,3789.1,3.0]
[1753972588805,3.33388749,3790.9,3789.1,3.0]
[1753972588806,1e-08,3790.9,3790.8,2.6379656]
[1753972588987,1e-08,3790.9,3790.8,4.205]
[1753972589173,1e-08,3790.9,3790.8,7.205]
[1753972589602,1e-08,3790.9,3790.8,7.241]
[1753972589603,0.92090001,3790.9,3790.8,7.241]
[1753972590014,1e-08,3790.9,3790.8,7.241]
[1753972590336,1e-08,3790.9,3790.8,4.241]